Cogmind - Beta 9.6 @@@ ROGUE MODE // 2020.08.27 @ 18:42:31 Player: Bokkiewokkie Result: Destroyed by D-53 Grenadier with Mini Grenade Launcher Performance ------------- Evolutions (0) 0 Regions Visited (2) 400 Robots Destroyed (15) 75 Value Destroyed (474) 474 Prototype IDs (0) 0 Alien Tech Used (0) 0 Bonus (0) 0 TOTAL SCORE: 949 Bonus ------- None Cogmind --------- Core Integrity 0/250 Matter 300/300 Energy 99/100 System Corruption 0% Temperature Cool (0) Movement Core (50) Location -10/Mines Parts ------- > --- POWER (1) -------- (None) > --- PROPULSION (2) --- (None) > --- UTILITY (2) ------ (None) > --- WEAPON (2) ------- (None) > --- INVENTORY (4) ---- Light Ion Engine Grenade Launcher Peak State ------------ > --- POWER ------------ Light Nuclear Core > --- PROPULSION ------- Light Treads Light Treads > --- UTILITY ---------- Improved Heat Sink Small Storage Unit > --- WEAPON ----------- Assault Rifle Light Assault Rifle > --- INVENTORY -------- Light Ion Engine Grenade Launcher [Rating: 11] Favorites ----------- Power Light Ion Engine Engine Light Ion Engine Power Core Light Nuclear Core Propulsion Light Treads Treads Light Treads Leg Aluminum Leg Utility Small Storage Unit Device Improved Heat Sink Storage Small Storage Unit Weapon Assault Rifle Ballistic Gun Assault Rifle Special Weapon Mining Laser Build | -11 -10 -10 ------- Run | Scr Mat Min Slots Evolved . | . . . Power . | . . . Propulsion . | . . . Utility . | . . . Weapon . | . . . Parts Attached 11 | 7 4 . Power 3 | 1 2 . Engine 2 | 1 1 . Core 1 | . 1 . Reactor . | . . . Propulsion 3 | 3 . . Treads 2 | 2 . . Leg 1 | 1 . . Wheel . | . . . Hover . | . . . Flight . | . . . Utility 2 | 1 1 . Device 1 | . 1 . Storage 1 | 1 . . Processor . | . . . Hackware . | . . . Protection . | . . . Artifact . | . . . Weapon 3 | 2 1 . Energy Gun . | . . . Energy Cannon . | . . . Ballistic Gun 2 | 2 . . Ballistic Cannon . | . . . Launcher . | . . . Special Weapon 1 | . 1 . Impact Weapon . | . . . Slashing Weapon . | . . . Piercing Weapon . | . . . Special Melee Weapon . | . . . Unidentified Prototypes . | . . . Parts Lost 8 | . 2 6 Power 2 | . 1 1 Propulsion 2 | . . 2 Utility 1 | . . 1 Weapon 3 | . 1 2 Highest Loss Streak 5 | . 2 5 Average Slot Usage (%) 85 | . 85 85 Engine 8 | . 7 14 Core 2 | . 3 . Treads 25 | . 28 14 Device 8 | . 7 14 Storage 14 | . 14 14 Ballistic Gun 22 | . 23 14 Special Weapon 2 | . . 14 Naked Turns . | . . . Heaviest Build 13 | 10 13 13 Greatest Support 40 | 40 40 20 Greatest Overweight (x) 3 | . . 3 Average Overweight (x) . | . . . Largest Inventory Capacity 6 | 6 6 6 Average Capacity 5 | 5 6 6 Most Carried 2 | 1 2 2 Average Carried 1 | . 1 2 Final Capacity 6 | 6 6 4 Final Carried 2 | 1 2 2 Class Distribution -------------------- 100% | Mutant Dominant Class ---------------- Mutant | -10/Materials Mutant | -10/Mines Resources | -11 -10 -10 ----------- Run | Scr Mat Min Matter Collected 520 | 163 289 68 Remotely . | . . . Salvage Created 553 | . 451 102 Parts 32 | . 29 3 Haulers Intercepted . | . . . Recyclers Shooed . | . . . Parts Field Recycled . | . . . Retrieved Matter . | . . . Parts Self-Destructed . | . . . Prevented . | . . . Kills | -11 -10 -10 ------- Run | Scr Mat Min Combat Hostiles Destroyed 12 | . 10 2 Guns 11 | . 10 1 Cannons 1 | . . 1 Classes Destroyed 4 | . 3 1 Builder 1 | . 1 . Recycler 1 | . . 1 Watcher 1 | . 1 . Grunt 12 | . 10 2 Best Kill Streak 3 | . 3 2 Combat Bots Only 3 | . 3 2 Max Kills in Single Turn 1 | . 1 1 Gunslinging . | . . . Exploded . | . . . Melee . | . . . Uniques/NPCs Destroyed . | . . . Combat | -11 -10 -10 -------- Run | Scr Mat Min Damage Taken 952 | . 577 375 Core 253 | . 99 154 Absorbed by Shields . | . . . Core Remaining (%) 100 | 100 . . Volleys Fired 62 | . 56 6 Largest 2 | . 2 2 Hottest 120 | . 40 120 Shots Fired 107 | . 95 12 Gun 101 | . 95 6 Cannon . | . . . Launcher . | . . . Special 6 | . . 6 Kinetic 101 | . 95 6 Thermal 6 | . . 6 Explosive . | . . . Electromagnetic . | . . . Robot Hit Streak 14 | . 14 5 Robot Miss Streak 4 | . 3 4 Penetration Max . | . . . Secondary Targets 1 | . 1 . Max Gunslinging Chain 1 | . 1 . Shots Hit Robots 66 | . 59 7 Core Hits 32 | . 26 6 Critical Hits . | . . . Critical Kills . | . . . Critical Parts Destroyed . | . . . Melee Attacks . | . . . Impact . | . . . Slashing . | . . . Piercing . | . . . Sneak Attacks . | . . . Combat Hostiles . | . . . Follow-up Attacks . | . . . Damage Inflicted 846 | . 667 179 Guns 750 | . 667 83 Cannons . | . . . Explosions . | . . . Melee . | . . . Ramming . | . . . Kinetic 750 | . 667 83 Thermal 96 | . . 96 Explosive . | . . . Electromagnetic . | . . . Impact . | . . . Slashing . | . . . Piercing . | . . . Highest Corruption . | . . . Average Corruption . | . . . Corruption Purged . | . . . Overload Shots . | . . . Overflow Damage . | . . . Projectiles . | . . . Explosions . | . . . Melee . | . . . Knockbacks . | . . . Impact . | . . . Kinetic . | . . . Secondary . | . . . Self-Inflicted Damage . | . . . Shots . | . . . Rammed . | . . . Targets Rammed . | . . . Kicked . | . . . Crushed . | . . . Highest Temperature 18 | . 18 5 Average Temperature 8 | . 8 5 Received Heat Transfer 378 | . 315 63 Siege Activations . | . . . Robots Corrupted . | . . . Combat Hostiles . | . . . Parts Fried . | . . . Impact Corruptions . | . . . Robots Melted . | . . . Combat Hostiles . | . . . Parts Melted . | . . . Heat Transferred 200 | . . 200 Parts Sabotaged . | . . . Parts Stolen . | . . . Parts Stripped . | . . . Power Chain Reactions . | . . . Missiles Intercepted . | . . . Alert | -11 -10 -10 ------- Run | Scr Mat Min Peak Influence 204 | . 204 91 Average Influence 72 | . 83 82 Maximum Alert Level 1 | . 1 . Low Security (%) 89 | 100 85 100 Level 1 10 | . 14 . Level 2 . | . . . Level 3 . | . . . Level 4 . | . . . Level 5 . | . . . High Security . | . . . Max Security . | . . . Squads Dispatched 4 | . 4 . Investigation 2 | . 2 . Extermination . | . . . Reinforcement 2 | . 2 . Assault . | . . . Garrison . | . . . Intercept . | . . . Construction Impeded . | . . . Haulers Reinforced . | . . . Stealth | -11 -10 -10 --------- Run | Scr Mat Min Distress Signals 1 | . 1 . Communications Jammed . | . . . Distress Signals . | . . . Times Spotted 27 | . 20 7 Peak Tracking Total 9 | . 3 9 Tactical Retreats 3 | . 3 . Traps | -11 -10 -10 ------- Run | Scr Mat Min Traps Triggered 2 | . 2 . Indirectly . | . . . Trap Hack Attempts . | . . . Triggered . | . . . Disarmed . | . . . Reprogrammed . | . . . Reused . | . . . Traps Extracted . | . . . Installed . | . . . Triggered . | . . . Machines | -11 -10 -10 ---------- Run | Scr Mat Min Machines Disabled . | . . . Max in Single Turn . | . . . Machines Sabotaged . | . . . Garrisons Compromised . | . . . Overloaded Fab Kills . | . . . Fab Network Shutdowns . | . . . Hacking | -11 -10 -10 --------- Run | Scr Mat Min Machines Accessed 6 | . 6 . Terminals 6 | . 6 . Fabricators . | . . . Repair Stations . | . . . Recycling Units . | . . . Scanalyzers . | . . . Garrison Access . | . . . Total Hacks 16 | . 16 . Successful 5 | . 5 . Failed 11 | . 11 . Catastrophic 1 | . 1 . Database Lockouts . | . . . Manual 14 | . 14 . Terminals 16 | . 16 . Fabricators . | . . . Repair Stations . | . . . Recycling Units . | . . . Scanalyzers . | . . . Garrison Access . | . . . Terminal Hacks 1 | . 1 . Zone Layout 1 | . 1 . Fabricator Hacks . | . . . Repair Station Hacks . | . . . Recycling Unit Hacks . | . . . Scanalyzer . | . . . Garrison Access Hacks . | . . . Unauthorized Hacks 4 | . 4 . Terminals 4 | . 4 . Track 2 | . 2 . Botnet 2 | . 2 . Fabricators . | . . . Repair Stations . | . . . Recycling Units . | . . . Scanalyzers . | . . . Garrison Access . | . . . Data Cores Recovered . | . . . Used . | . . . Hacking Detections 6 | . 6 . Full Trace Events . | . . . Feedback Events . | . . . Feedback Blocked . | . . . Robot Schematics Acquired . | . . . Robots Built . | . . . Matter . | . . . Time . | . . . Total Robot Build Rating . | . . . Part Schematics Acquired . | . . . Parts Built . | . . . Matter . | . . . Time . | . . . Total Part Build Rating . | . . . Parts Repaired . | . . . Time . | . . . Parts Recycled . | . . . Recycled Matter . | . . . Retrieved Matter . | . . . Retrieved Components . | . . . Parts Scanalyzed . | . . . Part Schematics Acquired . | . . . Parts Damaged . | . . . Bothacking | -11 -10 -10 ------------ Run | Scr Mat Min Used RIF Installer . | . . . Robots Hacked . | . . . Non-combat . | . . . Combat . | . . . Robot Hacks Applied . | . . . Relay Couplers Released . | . . . Robots Rewired . | . . . Allies Hacked . | . . . Hacks Repelled . | . . . Allies | -11 -10 -10 -------- Run | Scr Mat Min Total Allies . | . . . Largest Group . | . . . Highest-Rated Group . | . . . Highest-Rated Ally . | . . . Total Orders . | . . . Ally Attacks . | . . . Total Damage . | . . . Kills . | . . . Allies Corrupted . | . . . Allies Melted . | . . . Intel | -11 -10 -10 ------- Run | Scr Mat Min Robot Analysis Total . | . . . Derelict Logs Recovered 1 | . . 1 Drone Launches . | . . . Drone Recoveries . | . . . Exploration | -11 -10 -10 ------------- Run | Scr Mat Min Turns Passed 867 | 108 641 118 Spaces Moved 424 | 70 299 55 Core 13 | 10 . 3 Treads 402 | 51 299 52 Legs 9 | 9 . . Wheels . | . . . Hover . | . . . Flight . | . . . Fastest Speed 50 | 50 160 50 Average Speed 156 | 139 160 157 Slowest Speed 200 | 160 160 200 Overloaded Moves . | . . . Propulsion Burnouts . | . . . Robots Hopped . | . . . Cave-ins Triggered . | . . . Exploration Rate (%) 28 | 5 62 19 Regions Visited 2 Branch Regions 1 Pre-discovered Areas . | . . . Known Exits Taken . | . . . Unknown Exits Taken 2 | 1 1 . Scrap Searched . | . . . Spaces Dug . | . . . Terrain Destroyed 1 | . . 1 Melee . | . . . Projectile 1 | . . 1 AOE . | . . . Actions | -11 -10 -10 --------- Run | Scr Mat Min Total 514 | 78 373 63 Wait 14 | . 13 1 Move 422 | 69 298 55 Hop . | . . . Pick Up 2 | 1 1 . Fast Attach 11 | 7 4 . Attach . | . . . Detach . | . . . Swap . | . . . Drop 3 | 1 1 1 Fire 62 | . 56 6 Melee . | . . . Ram . | . . . Kick . | . . . Crush . | . . . Escape Stasis . | . . . Rewire . | . . . Trap . | . . . Miscellaneous . | . . . Route ------- -11/Scrapyard -10/Materials (discovered 3 exits: [*Mat x2] / [*Min]) -10/Mines (discovered 1 exit: [*Mat]) History --------- Turn | Location | Event 6 | -11/Scrapyard | Discovered new exit (range 16) 109 | -11/Scrapyard | Entered Materials 300 | -10/Materials | Build established: Mutant 430 | -10/Materials | Discovered new exit (range 13) 646 | -10/Materials | Discovered new exit (range 5) 708 | -10/Materials | Discovered new exit (range 15) 750 | -10/Materials | Entered Mines 787 | -10/Mines | Discovered new exit (range 13) 855 | -10/Mines | Learned Materials trap positions 856 | -10/Mines | Assembled infested the area 864 | -10/Mines | Core integrity fell below 50% 868 | -10/Mines | Core integrity fell below 20% 868 | -10/Mines | Destroyed by D-53 Grenadier with Mini Grenade Launcher Last Messages --------------- 00793_ K-01 Serf collects debris. 00794_ R-06 Scavenger destroyed. 00798_ K-01 Serf collects debris. 00799_ Acquired 39 matter. 00801_ K-01 Serf collects debris. 00820_ R-06 Scavenger collects Sml. Storage Unit. 00824_ R-06 Scavenger collects Tractor Beam. 00855_ Acquired derelict log, extracted data. Data stored: Materials trap records. 00856_ ALERT: Infestation in the mines, dispatching Demolisher response squad. 00856_ K-01 Serf suffers critical hit. 00856_ K-01 Serf destroyed. 00863_ C-30 ARC bursts open, deploying its payload. 00863_ D-53 Grenadier unfolds itself. 00863_ Mining Laser destroyed. 00865_ Assault Rifle destroyed. 00865_ Lgt. Treads destroyed. 00867_ Ion Engine destroyed. 00867_ Imp. Heat Sink destroyed. 00868_ Dropped Sml. Storage Unit. Map ----- +----------------------------------------------------+ | | | | | | | | | | | | | | | | | ????????????????????????????????????????????? | | ???????????????#####????????????????????????? | | ####??????????## ##???????????????????????? | | # ##?????????# ##??????????????????????? | | ########### < ########???????????????? | | ## *%! ##??????????????? | | ######"# """ ############???? | | #????#### """ #???? | | #####???????## """ ### #??? | | #????????????# #### %d #### #??? | | ##???????????# ## d #??# #??? | | ##????????????# # r #??# #??? | | #?????????????# ## #???# ##??? | | ?????????????## ## ##?? ###???? | | ##??????????????###### #?? ##?????? | | ?????????????????????# #?? ##??????? | | ?????????????????????# ! ##?? ????????? | | ?????????????????????# @ #?? ????????? | | ?????????????????????## ##?? ????????? | | ??????????????????????# ###??? ????????? | | ?????????????????????# ????? ????????? | | ???????????????????? ????? ????????? | | ??????????????????? ???? ????????? | | ?????????????????? ## ?????????????? | | ?????????????????###?## ????????????? | | ??????????????????????## #???????????? | | ???????????????????????## #???????????? | | ????????????????????????#a #???????????? | | ???????????????????????? = ##???????????? | | ???????????????????????? a% #????????????? | | ???????????????????????? #????????????? | | ???????????????????????? ??????????????? | | ????????????????????????? ????????????????? | | ????????????????????????????????????????????? | | ????????????????????????????????????????????? | | ????????????????????????????????????????????? | | ????????????????????????????????????????????? | | ????????????????????????????????????????????? | | ????????????????????????????????????????????? | | ????????????????????????????????????????????? | | ????????????????????????????????????????????? | | ????????????????????????????????????????????? | +----------------------------------------------------+ Best States ------------- Heat Dissipation 39 Energy Generation 14 Energy Capacity 250 Matter Stores 300 Matter Capacity 300 Sight Range 16 Terrain Scan Density 10 Evasion (%) 50 Recoil Reduction 2 Item Schematics ----------------- None Robot Schematics ------------------ None Fabricated ------------ Nothing Alien Tech Used ----------------- None Achievements -------------- None Challenges ------------ None Game ------ Seed LaserStasisBoomstick Manual? 0 Play Time 00:07:25 Cumulative 255.8 hours Start 2020.08.27 @ 18:35:47 End 2020.08.27 @ 18:42:31 Sessions 1 Manual Loads 0 Difficulty Rogue Special Mode None Game No. 71 Rogue 52 Adventurer 19 Explorer 0 Win Type - Total 4 Types 2/0/1/1/0/0/0 Lore% 66 Gallery% 70 Achievement% 59 Wizard Run 0 Options --------- ASCII 0 Keyboard 0 Movement Mouse Keybinds 0 Fullscreen 1 Font 14/SmallcapsGlow Map View 84x54 Tactical HUD 1 Map Filters NONE Filters NONE Steam 1 RUN: 9c290ad9-f3ee-41f3-9a6c-2457951e3217